bitfinex/quotes_ETHUSD_20250415
["timestamp","ask_amount","ask_price","bid_price","bid_amount"]
[1744678337652,6.13474,1630.1,1629.8,7.401177]
[1744678338865,12.6008,1630.4,1629.8,4.265607]
[1744678339077,6.13386,1630.3,1630.0,6.94755]
[1744678339536,6.13386,1630.3,1630.0,7.00889311]
[1744678340769,12.26804,1630.3,1630.0,0.8127]
[1744678341063,12.26789,1630.3,1629.9,12.27047]
[1744678341244,12.26789,1630.3,1630.0,1.227047]
[1744678341971,0.1523395,1630.2,1630.0,1.227047]
[1744678342468,0.1523395,1630.2,1630.0,7.361827]
[1744678342632,0.1523395,1630.2,1630.0,6.1961231]
[1744678343295,0.1523395,1630.2,1630.1,6.92299]
[1744678343441,9.5e-06,1630.2,1630.1,18.63835463]
[1744678343775,6.92844,1631.0,1630.3,3.7884]
[1744678343967,8.187284,1631.0,1630.7,6.13231]
[1744678344185,6.92772,1631.2,1630.8,6.13171]
[1744678344389,12.2623,1631.1,1630.7,6.13231]
[1744678344564,6.13113,1631.1,1630.7,6.19352602]
[1744678344869,6.13113,1631.1,1630.8,6.13178]
[1744678345446,6.13125,1631.0,1630.6,6.92103]
[1744678345767,12.26273,1631.0,1630.6,9.09797246]
[1744678346144,6.1316,1630.9,1630.6,9.09805246]
[1744678346477,6.1311,1631.1,1630.7,6.13233]
[1744678346771,12.2623,1631.1,1630.7,6.13233]
[1744678346955,6.13126,1631.0,1630.7,6.13233]
[1744678347351,6.13126,1631.0,1630.7,6.1936483]
[1744678347540,6.13126,1631.0,1630.7,6.13233]
[1744678347735,1.226236,1631.0,1630.6,6.4484]
[1744678347941,6.13215,1630.8,1630.6,0.7884]
[1744678348144,6.13254,1630.7,1630.5,5.659]
[1744678348641,6.13254,1630.7,1630.4,1.13824]
[1744678348839,6.13271,1630.6,1630.4,0.7594]
[1744678350870,6.13271,1630.6,1630.3,11.79277]
[1744678351071,0.12658727,1630.5,1630.3,11.79277]
[1744678351594,6.13384,1630.3,1630.2,47.838]
[1744678351758,6.13363,1630.4,1630.1,5.659]
[1744678352272,6.26053727,1630.3,1630.1,5.659]
[1744678352478,0.12658727,1630.3,1630.0,13.01975]
[1744678352687,6.13363,1630.4,1630.0,14.321725]
[1744678352991,0.12658727,1630.2,1630.0,14.321725]
[1744678353181,6.13363,1630.4,1630.0,14.321725]
[1744678353383,0.7635,1630.9,1630.4,6.13329]
[1744678353704,6.89511,1630.9,1630.6,6.13266]
[1744678354060,6.13125,1631.0,1630.6,12.26519]
[1744678354394,13.01421,1631.1,1630.7,6.13212]
[1744678354690,6.13122,1631.0,1630.6,6.13268]
[1744678354892,6.13166,1630.9,1630.6,6.13268]
[1744678355459,12.26347,1630.9,1630.6,6.13268]
[1744678355856,6.13166,1630.9,1630.6,7.438949]
[1744678356496,6.13166,1630.9,1630.6,1.306269]
[1744678356812,6.13199,1630.8,1630.6,1.306269]
[1744678357096,0.12015807,1630.8,1630.6,1.306269]
[1744678357261,6.13166,1630.9,1630.6,1.306269]
[1744678357462,0.12015807,1630.8,1630.6,7.438929]
[1744678357782,6.13166,1630.9,1630.6,7.438929]
[1744678357994,0.12015807,1630.7,1630.6,7.438929]
[1744678358481,6.13123,1631.0,1630.6,13.63290821]
[1744678358676,0.12593107,1630.9,1630.6,13.571589]
[1744678358878,0.12593107,1630.9,1630.6,7.438929]
[1744678361396,0.12593107,1630.9,1630.7,6.13231]
[1744678361697,0.12593107,1630.9,1630.6,7.438939]
[1744678361895,0.12593107,1630.9,1630.6,13.571529]
[1744678362897,0.12593107,1630.9,1630.7,7.4894829]
[1744678363108,6.88331,1631.1,1630.8,6.13183]
[1744678363680,13.01436,1631.1,1630.7,13.6217029]
[1744678364299,6.88331,1631.1,1630.7,13.6217029]
[1744678364480,13.01435,1631.1,1630.7,13.6217029]
[1744678364683,13.01435,1631.1,1630.8,1.36217029]
[1744678364893,6.88331,1631.1,1630.8,1.36217029]
[1744678365695,13.01448,1631.1,1630.8,1.36217029]
[1744678367505,0.05,1631.4,1631.0,3.00918837]
[1744678367800,0.05,1631.4,1631.1,12.26141]
[1744678368001,0.05,1631.4,1631.1,6.1307]
[1744678368216,6.17971,1631.4,1631.1,6.1307]
[1744678368382,6.17971,1631.4,1631.0,0.38551027]
[1744678368383,6.13045,1631.2,1631.0,0.38551027]
[1744678368848,6.1304,1631.3,1631.0,0.38551027]
[1744678368984,0.05,1631.4,1631.1,6.13058]
[1744678369186,0.05,1631.4,1631.2,6.13025]
[1744678369387,0.05,1631.4,1631.3,6.13008]
[1744678370813,0.05,1631.4,1631.3,11.84737731]
[1744678371808,0.1730568,1631.4,1631.3,11.84737731]
[1744678371987,0.05,1631.4,1631.3,11.84737731]
[1744678372171,0.1730568,1631.4,1631.3,14.02718888]
[1744678372376,0.1730568,1631.4,1631.3,13.96589157]
[1744678374186,0.1730568,1631.4,1631.3,2.17981157]
[1744678374382,6.3027768,1631.4,1631.3,5.655]
[1744678374912,0.1730568,1631.4,1631.3,5.655]
[1744678377317,6.8e-06,1631.4,1631.3,12.63657928]
[1744678377623,0.8268,1632.1,1631.7,6.1284]
[1744678377830,13.08115,1632.1,1631.8,5.654]
[1744678378212,6.1275,1632.0,1631.8,5.654]
[1744678379032,6.95391,1632.1,1631.4,12.91876837]
[1744678379207,6.12832,1631.8,1631.7,5.654]
[1744678379828,6.12785,1631.9,1631.7,5.654]
[1744678380031,6.12759,1632.0,1631.7,5.654]
[1744678380432,12.2553,1632.0,1631.7,5.654]
[1744678380596,6.12783,1631.9,1631.7,5.654]
[1744678381196,12.25599,1631.9,1631.7,5.654]
[1744678381531,12.25584,1631.9,1631.7,5.654]
[1744678381743,6.12783,1631.9,1631.7,5.654]
[1744678382432,12.25595,1631.9,1631.7,5.654]
[1744678382731,6.1282,1631.8,1631.7,5.654]
[1744678383295,6.12783,1631.9,1631.7,5.654]
[1744678384631,12.2559,1631.9,1631.7,5.654]
[1744678384802,6.1282,1631.8,1631.5,6.12919]
[1744678384998,6.1282,1631.8,1631.6,6.265919]
[1744678385223,6.12783,1631.9,1631.6,6.741859]
[1744678385428,6.12783,1631.9,1631.7,5.653]
[1744678386409,12.25523,1632.0,1631.7,5.653]
[1744678386726,6.12801,1631.9,1631.7,5.653]
[1744678387845,0.8106,1632.3,1631.8,3.00918837]
[1744678388030,13.06381,1632.3,1631.9,6.12768]
[1744678388224,13.06381,1632.3,1631.7,2.0131689]
[1744678388225,6.12756,1632.0,1631.7,2.0131689]
[1744678388425,6.12812,1631.9,1631.7,5.653]
[1744678388835,12.25618,1631.9,1631.7,5.653]
[1744678389342,13.01308,1631.9,1631.7,5.653]
[1744678389515,0.7569,1631.9,1631.5,3.78288837]
[1744678389716,0.7569,1631.9,1631.6,5.653]
[1744678389924,6.88486,1631.9,1631.6,5.653]
[1744678390131,6.12822,1631.8,1631.6,5.653]
[1744678391244,12.25661,1631.8,1631.5,8.66218837]
[1744678391709,6.12822,1631.8,1631.5,8.66218837]
[1744678391909,6.12822,1631.8,1631.5,10.44135921]
[1744678392214,12.25665,1631.8,1631.5,4.78835921]
[1744678392414,12.25665,1631.8,1631.5,10.44135921]
[1744678392739,6.12861,1631.7,1631.5,10.44135921]
[1744678393448,12.25738,1631.7,1631.5,10.44135921]
[1744678393746,6.12861,1631.7,1631.5,10.44135921]
[1744678396045,6.12828,1631.8,1631.5,10.44135921]
[1744678396210,6.12733,1632.1,1631.6,7.17305592]
[1744678396415,6.12775,1632.0,1631.6,7.96435592]
[1744678396661,6.94612,1632.2,1631.8,6.12793]
[1744678396818,12.25483,1632.1,1631.7,15.26605837]
[1744678397121,6.1274,1632.1,1631.8,6.12801]
[1744678397540,6.1274,1632.1,1631.9,5.65]
[1744678397745,6.1264,1632.3,1631.9,14.84827543]
[1744678397969,12.25292,1632.3,1631.9,15.56409837]
[1744678398125,12.25292,1632.3,1631.9,15.56397837]
[1744678398327,0.05,1632.4,1631.9,3.00918837]
[1744678398665,12.25469,1632.1,1631.8,5.65]
[1744678398820,13.01876,1632.2,1631.8,11.77811]
[1744678399015,6.1281,1631.9,1631.5,6.93726]
[1744678399268,6.12823,1631.8,1631.6,9.65]
[1744678399420,6.12879,1631.7,1631.4,6.12968]
[1744678399618,6.12879,1631.7,1631.6,5.65]
[1744678401767,12.2569,1631.8,1631.5,5.65]
[1744678401924,12.2569,1631.8,1631.4,7.65645084]
[1744678402126,6.12858,1631.7,1631.5,5.65]
[1744678402569,6.12858,1631.7,1631.4,7.65645084]
[1744678402765,6.12858,1631.7,1631.5,5.65]
[1744678403138,12.25657,1631.8,1631.6,5.65]
[1744678403335,12.25657,1631.8,1631.4,7.65642084]
[1744678403539,6.12859,1631.7,1631.5,5.65]
[1744678404053,6.12859,1631.7,1631.5,6.36768908]
[1744678404768,6.12827,1631.8,1631.5,12.49675908]
[1744678405457,12.25674,1631.8,1631.5,6.36768908]
[1744678405634,6.1286,1631.7,1631.5,6.36768908]
[1744678405834,12.2574,1631.7,1631.5,6.36768908]
[1744678406040,6.1286,1631.7,1631.5,6.36768908]
[1744678406234,12.25664,1631.8,1631.5,6.36768908]
[1744678406575,12.25909,1631.5,1631.1,1.75672786]
[1744678406859,12.25909,1631.5,1631.3,5.65]
[1744678407226,12.25984,1631.4,1631.2,9.65]
[1744678407466,6.12989,1631.4,1631.2,9.65]
[1744678407673,6.12936,1631.5,1631.2,5.65]
[1744678407879,6.12936,1631.5,1631.2,11.78032]
[1744678408171,12.25901,1631.5,1631.2,6.908452]
[1744678411261,6.12936,1631.5,1631.2,6.908452]
[1744678411450,6.12936,1631.5,1631.2,13.038842]
[1744678412361,12.25889,1631.5,1631.2,13.038842]
[1744678412529,6.12936,1631.5,1631.2,13.038842]
[1744678412735,12.25893,1631.5,1631.2,13.038842]
[1744678413370,12.25891,1631.5,1631.2,13.038842]
[1744678414069,6.12936,1631.5,1631.2,13.038842]
[1744678415537,12.25885,1631.5,1631.2,13.038842]
[1744678415939,6.13008,1631.3,1631.2,6.908452]
[1744678416259,12.25972,1631.4,1631.2,5.65]
[1744678416768,0.7727,1631.6,1631.2,5.65]
[1744678416969,13.03095,1631.6,1631.2,11.78038]
[1744678417470,6.12935,1631.5,1631.2,11.78038]
[1744678417670,6.12935,1631.5,1631.2,13.651915]
[1744678417873,6.12935,1631.5,1631.2,19.782245]
[1744678418170,6.12935,1631.5,1631.2,13.651865]
[1744678418569,12.25886,1631.5,1631.2,13.651865]
[1744678419172,6.12935,1631.5,1631.2,13.651865]
[1744678419778,12.25885,1631.5,1631.2,7.521535]
[1744678420537,0.7727,1631.6,1631.2,7.521535]
[1744678420745,6.13059,1631.2,1631.0,5.651]
[1744678420963,6.13059,1631.2,1630.9,6.94017]
[1744678421156,6.13059,1631.2,1630.9,12.59117]
[1744678421674,6.13108,1631.1,1630.9,5.651]
[1744678422675,12.26221,1631.1,1630.9,5.651]
[1744678422888,12.26127,1631.2,1630.9,5.651]
[1744678423091,6.13006,1631.4,1631.1,6.13063]
[1744678423261,6.90276,1631.4,1631.0,6.13109]
[1744678423668,6.13022,1631.3,1630.9,13.33819084]
[1744678424064,6.13057,1631.2,1630.9,13.33819084]
[1744678424401,6.13009,1631.3,1631.0,6.13109]
[1744678424572,12.26041,1631.3,1630.9,19.46962084]
[1744678424860,12.26041,1631.3,1630.9,13.33816084]
[1744678425572,12.26041,1631.3,1630.9,13.33813084]
[1744678425767,12.26041,1631.3,1630.9,19.46958084]
[1744678426983,12.26041,1631.3,1630.9,13.33813084]
[1744678427282,12.26041,1631.3,1630.9,19.46960084]
[1744678427455,13.04071,1631.6,1631.2,6.13017]
[1744678427658,6.91142,1631.6,1631.2,12.32175819]
[1744678427977,12.25906,1631.5,1631.1,6.90251]
[1744678428180,12.25906,1631.5,1631.1,13.03321]
[1744678428789,6.13001,1631.4,1631.1,3.7717]
[1744678428990,12.26066,1631.3,1630.9,17.61786921]
[1744678429200,6.13025,1631.3,1631.0,9.648]
[1744678429359,6.13025,1631.3,1631.0,10.13115]
[1744678429690,6.13025,1631.3,1631.0,11.77915]
[1744678429886,6.13025,1631.3,1631.0,6.13115]
[1744678430093,6.13025,1631.3,1631.0,11.77915]
[1744678430255,12.26057,1631.3,1631.0,6.13115]
[1744678430461,13.08737,1631.3,1631.0,11.77915]
[1744678430892,13.08737,1631.3,1631.0,6.13115]
[1744678431188,6.13057,1631.2,1630.9,2.34570084]
[1744678431361,13.08713,1631.3,1630.9,14.12525084]
[1744678431564,13.08713,1631.3,1630.9,20.25669084]
[1744678431764,6.13048,1631.2,1630.9,14.12514084]
[1744678432397,6.13048,1631.2,1630.9,14.12512084]
[1744678432691,6.95689,1631.3,1630.9,20.25658084]
[1744678432992,6.95689,1631.3,1630.9,23.26576921]
[1744678433199,13.08729,1631.3,1630.9,17.13430921]
[1744678433498,13.08729,1631.3,1630.9,23.26577921]
[1744678433794,6.95689,1631.3,1631.0,6.13118]
[1744678434092,13.08715,1631.3,1631.0,6.13118]
[1744678434393,6.13059,1631.2,1630.9,17.13430921]
[1744678434596,6.13059,1631.2,1630.8,6.13194]
[1744678434597,6.1314,1631.0,1630.8,5.648]
[1744678434799,6.13158,1630.9,1630.8,5.648]
[1744678434991,6.1314,1631.0,1630.8,9.648]
[1744678435295,6.1314,1631.0,1630.8,5.648]
[1744678435504,2.052131,1631.0,1630.5,0.7572]
[1744678435693,6.13214,1630.8,1630.6,5.648]
[1744678435883,12.26434,1630.8,1630.7,4.0]
[1744678436291,12.26434,1630.8,1630.5,9.4052]
[1744678436700,6.13214,1630.8,1630.5,15.53812]
[1744678437279,6.13214,1630.8,1630.5,21.6830796]
[1744678438479,0.8259,1631.0,1630.5,6.4327]
[1744678438480,6.13256,1630.7,1630.5,6.4327]
[1744678438677,0.8259,1631.0,1630.6,9.14181837]
[1744678438901,6.13209,1630.8,1630.6,3.00918837]
[1744678439069,12.26424,1630.8,1630.5,6.4327]
[1744678439277,12.26423,1630.8,1630.5,6.4327]
[1744678439697,6.13209,1630.8,1630.5,18.7107096]
[1744678440508,0.8259,1631.0,1630.8,6.1318]
[1744678440712,6.13044,1631.3,1630.9,6.13143]
[1744678440874,6.12939,1631.5,1631.1,6.13069]
[1744678441074,6.12939,1631.5,1631.1,6.88969]
[1744678441311,6.12939,1631.5,1631.2,6.13034]
[1744678441485,6.12939,1631.5,1631.1,7.87957784]
[1744678441486,12.25901,1631.5,1631.1,7.87957784]
[1744678443174,0.7959,1631.6,1631.2,0.06129823]
[1744678443398,6.1286,1631.7,1631.4,6.90228]
[1744678444407,13.03909,1631.8,1631.4,6.96346035]
[1744678444711,6.12919,1631.6,1631.4,0.7726]
[1744678444905,8.214739,1631.8,1631.4,0.7726]
[1744678445203,6.12858,1631.7,1631.4,6.96345271]
[1744678445408,12.25736,1631.7,1631.4,0.83389271]
[1744678445609,12.25736,1631.7,1631.4,0.7726]
[1744678445907,6.12958,1631.5,1631.3,5.649]
[1744678446076,6.12857,1631.7,1631.3,5.649]
[1744678446275,6.12911,1631.6,1631.3,11.77907]
[1744678446675,6.1297,1631.4,1631.3,5.649]
[1744678447584,6.12805,1631.9,1631.5,6.12917]
[1744678447787,6.12805,1631.9,1631.5,6.92057]
[1744678448101,6.12881,1631.7,1631.3,13.05136]
[1744678448275,6.12878,1631.7,1631.3,13.05123]
[1744678448479,6.93585,1632.0,1631.6,6.89126]
[1744678448807,13.0635,1632.0,1631.6,12.60054093]
[1744678449106,0.8083,1632.0,1631.7,6.12835]
[1744678449481,6.93593,1632.0,1631.7,6.12835]
[1744678449679,13.06368,1632.0,1631.6,12.53937]
[1744678449905,6.93593,1632.0,1631.7,6.12853]
[1744678450208,6.93593,1632.0,1631.7,6.12842]
[1744678450410,6.12761,1632.0,1631.6,14.406164]
[1744678450711,12.2553,1632.0,1631.6,20.534984]
[1744678451083,12.2553,1632.0,1631.6,20.534994]
[1744678451304,6.12761,1632.0,1631.6,20.534994]
[1744678451711,6.12761,1632.0,1631.7,6.12855]
[1744678451923,6.12761,1632.0,1631.7,8.1820494]
[1744678452580,0.7584,1632.2,1631.9,6.12754]
[1744678452910,6.97876,1632.4,1632.0,6.12729]
[1744678453277,13.10502,1632.4,1632.0,12.2546]
[1744678453507,13.10502,1632.4,1632.0,13.48006]
[1744678453678,6.1265,1632.3,1632.0,1.22546]
[1744678454276,0.8526,1632.4,1631.8,0.7781]
[1744678454481,6.12687,1632.2,1631.8,6.90598]
[1744678454683,12.25301,1632.3,1631.9,6.12781]
[1744678454881,6.12632,1632.3,1631.9,6.12781]
[1744678455082,6.12687,1632.2,1631.8,6.90623]
[1744678455283,6.12687,1632.2,1631.8,8.51062584]
[1744678455514,6.12687,1632.2,1631.8,14.63864584]
[1744678455714,12.25375,1632.2,1631.8,14.63864584]
[1744678456011,12.25375,1632.2,1631.8,8.51051584]
[1744678456216,6.88398,1632.1,1631.8,8.51051584]
[1744678456580,6.12758,1632.0,1631.6,18.66711]
[1744678456784,6.12812,1631.9,1631.7,4.0]
[1744678456982,12.25614,1631.9,1631.7,4.0]
[1744678457592,6.1282,1631.8,1631.7,4.0]
[1744678458021,6.1282,1631.8,1631.6,6.4094]
[1744678458286,12.25614,1631.9,1631.6,6.4094]
[1744678458488,6.12843,1631.8,1631.6,6.4094]
[1744678458689,12.25686,1631.8,1631.6,5.643]
[1744678459289,12.25519,1632.0,1631.6,19.46129584]
[1744678459496,6.12751,1632.0,1631.7,6.92335]
[1744678459838,12.25514,1632.0,1631.7,6.92335]
[1744678460393,6.12783,1631.9,1631.7,0.7948]
[1744678460811,6.1282,1631.8,1631.6,7.20361584]
[1744678461735,6.1282,1631.8,1631.6,1.56061584]
[1744678461893,6.12789,1631.9,1631.6,1.56061584]
[1744678462093,12.2559,1631.9,1631.6,7.68955584]
[1744678462323,6.12789,1631.9,1631.6,7.68955584]
[1744678463291,12.2559,1631.9,1631.6,7.68955584]
[1744678464140,12.25696,1631.8,1631.5,9.47578837]
[1744678464490,12.25687,1631.8,1631.5,9.47578837]
[1744678465428,12.25687,1631.8,1631.3,47.795]
[1744678465429,6.94598,1631.7,1631.3,56.93411837]
[1744678465749,6.12912,1631.6,1631.4,9.642]
[1744678466556,6.12912,1631.6,1631.4,5.642]
[1744678467536,13.07472,1631.7,1631.4,11.77167]
[1744678467842,13.07472,1631.7,1631.4,5.642]
[1744678468223,13.07466,1631.7,1631.4,5.642]
[1744678468623,13.07462,1631.7,1631.4,5.642]
[1744678469542,6.94588,1631.7,1631.4,11.77165]
[1744678469743,6.89131,1631.8,1631.4,20.07179684]
[1744678469944,6.89131,1631.8,1631.4,13.94214684]
[1744678470244,13.01983,1631.8,1631.4,13.94214684]
[1744678470625,6.89652,1631.9,1631.4,7.81258684]
[1744678470849,6.12803,1631.9,1631.6,6.94864]
[1744678471044,12.25611,1631.9,1631.6,6.94864]
[1744678471540,6.12833,1631.8,1631.6,0.82]
[1744678471747,6.12857,1631.7,1631.4,17.71825521]
[1744678472570,6.12833,1631.8,1631.5,6.12912]
[1744678473378,6.12825,1631.8,1631.5,6.12931]
[1744678473672,6.12825,1631.8,1631.5,12.25848]
[1744678473875,6.12825,1631.8,1631.5,6.12917]
[1744678474429,12.25528,1632.0,1631.6,6.12876]
[1744678474629,12.25528,1632.0,1631.6,12.25758]
[1744678474962,13.05888,1632.1,1631.7,6.90511]
[1744678475158,13.05888,1632.1,1631.7,13.03356]
[1744678475475,13.05891,1632.1,1631.7,6.90511]
[1744678475676,6.12784,1631.9,1631.5,8.98992568]
[1744678475837,6.12749,1632.0,1631.6,11.77177]
[1744678475838,12.25508,1632.0,1631.6,11.77177]
[1744678476035,6.12754,1632.0,1631.7,6.12853]
[1744678476375,12.25516,1632.0,1631.6,11.77177]
[1744678476861,6.12754,1632.0,1631.7,6.12846]
[1744678477063,6.12754,1632.0,1631.7,6.12843]
[1744678477378,6.12714,1632.1,1631.8,0.7645]
[1744678478157,6.12714,1632.1,1631.8,6.89255]
[1744678478333,0.7502,1632.2,1631.8,0.7645]
[1744678478667,6.12775,1632.0,1631.6,9.46668837]
[1744678479046,6.12775,1632.0,1631.6,6.4575]
[1744678479248,6.12775,1632.0,1631.6,7.10325]
[1744678479451,6.12775,1632.0,1631.6,13.23207]
[1744678479660,6.12766,1632.0,1631.6,13.23204]
[1744678479854,12.25528,1632.0,1631.7,6.12856]
[1744678480058,6.12762,1632.0,1631.7,6.12856]
[1744678480561,12.2554,1632.0,1631.6,13.23209]
[1744678481135,6.12762,1632.0,1631.6,19.3609]
[1744678481358,6.12762,1632.0,1631.7,6.1284]
[1744678481673,12.25523,1632.0,1631.6,19.36097]
[1744678482371,12.25523,1632.0,1631.6,13.23208]
[1744678482570,12.25523,1632.0,1631.6,19.36092]
[1744678482768,6.12783,1631.9,1631.6,19.36089]
[1744678482970,6.12783,1631.9,1631.7,1.936089]
[1744678483337,12.2554,1632.0,1631.7,1.936089]
[1744678483538,6.12782,1631.9,1631.7,1.936089]
[1744678483737,6.12782,1631.9,1631.6,13.23206]
[1744678483939,12.25581,1631.9,1631.6,7.10325]
[1744678484651,6.12782,1631.9,1631.6,19.3609]
[1744678485485,6.12782,1631.9,1631.6,13.23206]
[1744678486183,6.12782,1631.9,1631.6,13.23204]
[1744678489272,12.25589,1631.9,1631.6,13.23204]
[1744678489570,13.02309,1631.9,1631.6,13.23204]
[1744678489870,13.02305,1631.9,1631.7,1.323204]
[1744678490075,6.89502,1631.9,1631.7,1.323204]
[1744678491375,0.7672,1631.9,1631.6,6.28875]
[1744678491577,6.12856,1631.8,1631.6,5.643]
[1744678491781,12.25691,1631.8,1631.6,5.643]
[1744678492383,6.12835,1631.8,1631.6,5.643]
[1744678493896,13.02319,1631.9,1631.6,5.643]
[1744678494062,13.02319,1631.9,1631.6,11.77191]
[1744678494587,13.02319,1631.9,1631.6,5.643]
[1744678494792,6.12827,1631.8,1631.6,5.643]
[1744678496402,6.12827,1631.8,1631.4,0.7623]
[1744678496403,6.12857,1631.7,1631.4,0.7623]
[1744678496606,6.12857,1631.7,1631.5,5.638]
[1744678497463,0.7536,1631.6,1631.3,0.7704]
[1744678497801,6.12959,1631.5,1631.4,4.0]
[1744678498451,6.12959,1631.5,1631.2,11.76832]
[1744678498764,6.90444,1631.8,1631.4,6.1294]
[1744678498946,6.1287,1631.7,1631.4,6.1294]
[1744678499153,6.12907,1631.6,1631.3,6.88967]
[1744678499996,6.12907,1631.6,1631.3,6.88956]
[1744678500292,6.12907,1631.6,1631.3,6.88952]
[1744678500495,6.12907,1631.6,1631.4,0.688952]
[1744678500846,12.25763,1631.7,1631.4,0.688952]
[1744678501048,6.1287,1631.7,1631.4,6.818602]
[1744678501380,6.90453,1631.8,1631.4,13.00952294]
[1744678501567,13.03305,1631.8,1631.4,6.818592]
[1744678501765,6.12858,1631.7,1631.5,0.6818592]
[1744678502298,12.25737,1631.7,1631.5,0.6818592]
[1744678502500,0.7776,1631.5,1631.1,0.7533]
[1744678502800,6.13023,1631.3,1631.2,4.0]
[1744678503557,6.13056,1631.2,1631.0,5.638]
[1744678503758,6.13056,1631.2,1631.0,6.893532]
[1744678505500,12.26125,1631.2,1631.0,6.893532]
[1744678506209,12.26119,1631.2,1631.0,6.893532]
[1744678506909,6.13056,1631.2,1631.0,6.893532]
[1744678507623,6.13139,1631.0,1630.8,47.787]
[1744678507912,0.7796,1631.1,1630.5,6.4467]
[1744678507913,6.13195,1630.8,1630.5,6.4467]
[1744678508113,6.13238,1630.7,1630.6,4.0]
[1744678508462,6.13233,1630.7,1630.6,4.0]
[1744678509112,12.26484,1630.7,1630.5,5.639]
[1744678509268,6.13233,1630.7,1630.5,5.639]
[1744678509465,6.13233,1630.7,1630.5,6.897013]
[1744678509666,0.8039,1631.0,1630.5,6.897013]
[1744678509872,6.93524,1631.0,1630.7,0.8004]
[1744678510072,6.13089,1631.1,1630.8,6.13178]
[1744678510397,6.13089,1631.1,1630.8,12.2636]
[1744678510592,6.13089,1631.1,1630.8,6.13178]
[1744678510819,6.13089,1631.1,1630.7,0.8004]
[1744678510820,6.13089,1631.1,1630.7,6.93259]
[1744678511107,6.13089,1631.1,1630.7,14.05895784]
[1744678511311,6.90509,1631.2,1630.9,6.13142]
[1744678513417,0.7786,1631.3,1630.8,6.13188]
[1744678513705,6.13115,1631.1,1630.7,10.12643784]
[1744678513871,12.26225,1631.1,1630.7,10.12639784]
[1744678514067,12.26225,1631.1,1630.8,5.01263978]
[1744678515600,12.26225,1631.1,1630.8,1.01263978]
[1744678515806,6.1311,1631.1,1630.8,1.01263978]
[1744678516305,6.13101,1631.1,1630.8,1.01263978]
[1744678516501,12.26206,1631.1,1630.8,1.01263978]
[1744678516869,6.13125,1631.0,1630.8,1.01263978]
[1744678517075,6.13101,1631.1,1630.8,7.14458978]
[1744678518205,6.95036,1631.4,1631.0,6.13093]
[1744678518378,6.13009,1631.3,1631.0,6.13093]
[1744678518580,12.26043,1631.3,1630.9,18.61245898]
[1744678518894,12.26043,1631.3,1630.9,6.34945898]
[1744678518895,6.13008,1631.3,1630.9,6.34945898]
[1744678519095,6.13111,1631.1,1630.9,5.635]
[1744678520989,13.0314,1631.2,1630.9,5.635]
[1744678521186,6.90065,1631.2,1630.9,5.635]
[1744678521390,6.13045,1631.2,1630.9,5.635]
[1744678521686,12.26037,1631.3,1630.9,17.89786]
[1744678522210,12.26122,1631.2,1630.9,11.76631]
[1744678522406,6.13083,1631.1,1630.9,5.635]
[1744678522576,12.2619,1631.1,1630.9,5.635]
[1744678523204,6.13191,1630.9,1630.6,0.7553]
[1744678523404,6.13208,1630.8,1630.7,4.0]
[1744678524508,13.04926,1630.9,1630.7,4.0]
[1744678525009,6.13195,1630.8,1630.7,4.0]
[1744678525315,6.13236,1630.7,1630.5,5.635]
[1744678525515,6.13195,1630.8,1630.5,6.887491]
[1744678525921,6.13259,1630.7,1630.5,6.887491]
[1744678526104,6.13259,1630.7,1630.5,5.635]
[1744678526820,6.13259,1630.7,1630.2,6.4153]
[1744678526821,6.13351,1630.4,1630.2,6.4153]
[1744678526987,6.13351,1630.4,1630.3,4.0]
[1744678527192,6.13351,1630.4,1630.2,5.636]
[1744678527637,0.8019,1630.8,1630.6,6.13249]
[1744678527832,6.13162,1630.9,1630.6,6.13249]
[1744678528434,6.93317,1631.0,1630.7,6.13229]
[1744678528602,13.06458,1631.0,1630.6,6.821619]
[1744678528941,12.26335,1630.9,1630.6,6.821619]
[1744678529397,6.13159,1630.9,1630.6,6.821619]
[1744678529588,13.06459,1631.0,1630.6,6.821619]
[1744678529805,13.06459,1631.0,1630.7,0.6821619]
[1744678531032,6.13173,1630.9,1630.7,0.6821619]
[1744678531330,6.13173,1630.9,1630.6,0.689129]
[1744678531543,6.13208,1630.8,1630.5,3.7588]
[1744678531688,6.91535,1630.7,1630.4,3.0]
[1744678531885,6.13283,1630.6,1630.5,4.0]
[1744678532289,6.94023,1630.9,1630.5,10.13291]
[1744678532534,6.94023,1630.9,1630.6,1.811091]
[1744678532745,6.13208,1630.8,1630.6,1.811091]
[1744678533028,6.94023,1630.9,1630.6,7.943791]
[1744678533238,6.13202,1630.8,1630.6,1.811091]
[1744678533398,12.26433,1630.8,1630.4,6.88589]
[1744678533739,12.26433,1630.8,1630.4,6.88585]
[1744678534038,12.26433,1630.8,1630.4,6.88584]
[1744678534635,6.1324,1630.7,1630.4,6.88584]
[1744678534926,6.1324,1630.7,1630.4,8.48871984]
[1744678535730,12.26433,1630.8,1630.4,8.48867984]
[1744678535930,12.26428,1630.8,1630.4,8.48867984]
[1744678536307,6.13202,1630.8,1630.5,6.13292]
[1744678536524,6.13202,1630.8,1630.5,6.98174998]
[1744678536727,12.26418,1630.8,1630.5,0.84882998]
[1744678538339,6.13202,1630.8,1630.5,0.84882998]
[1744678538486,6.13241,1630.7,1630.5,0.84882998]
[1744678539137,6.13271,1630.6,1630.5,0.84882998]
[1744678539441,6.13271,1630.6,1630.4,3.0]
[1744678539642,12.26562,1630.6,1630.3,6.88595]